{"text_format":"1","workbook":"xlsx","n_sheets":2,"sheets":["DATA","print"],"not_rendered":{"charts":0,"images":0,"macros":1,"external_links":0,"defined_names":3,"comments":0,"pivot_tables":0},"unopened":[],"bounds":{"document_bytes":16777216,"sheet_cells":100000,"rows_first":2000,"rows_last":500,"rows_between":2000,"halvings":0,"cell_chars":16384,"cell_head_chars":4096},"cells_cut":0,"cells_raw":0,"read":"whole","date_system":"1900"}

{"sheet":"DATA","index":0,"n_rows":7,"n_cols":26,"rows_kept":7,"cut":false,"hidden":false,"merged":[]}
["رقم تسلسل ","اسم الموظف رباعي","رقم المنظومة","الرقم الوطني","رقم الملف الشخصي","تاريخ الميلاد","المصرف","الفرع","رقم الحساب"," المؤهل العلمي","التخصص","تاريخ الحصول عليه","سنة التعيين ","الوظيفة في الملاك","رقم الوظيفة في الملاك","نوع التوظيف","تاريخ مباشرة العمل","الدرجة","تاريخ الحصول عليها ","العلاوات","شهر العلاوة","الادارة التي يتبعها الموظف","الوظيفة الحالية ","رصيد الاجازات","رقم البطاقة الضمانية ","الملاحظات"]
[1,"سناء امين يس طلال","عقد موسمي",6000,"عامل","اعدادية","اعزب","بغداد",7729876,800,150,1,"نعم",27,"تعم","لمى",8,"ab","بابل","بصرة","أربيل",1954,1957,"الحمداني","مقاول","موظفة"]
[2,"خليل ماجد ياسر شامل","عقد تصنيف",6000,"موظف","معهد","متزوج","بغداد",7729875,780,150,2,"لا",28,"نعم","وصال",1,"o+","بغداد","كركوك","ديالى",1955,1958,"الصالحي","موظف","مهندسة"]
[3,"البيس",54554,12132356565655,12121,"25.25.2016","رئي",null,"لبلتلبتليلايب"]
[4,"بسلبسلقس","ءبابءابء","اؤاؤاؤب","اؤبلاؤل","25.255.2016","لارةلاةؤ","ىؤلاىؤلا","ىةؤلاىةلاؤ","ةلاؤةلاة","لاؤةة","لارةلارةلار","ةلارةلار","ةلارةلا","رةلارة","لارةلارةلار","ةلارةلار","ةلارةلار","ةلارةلارة","لارةلارة","رلاةلار","ةلارةلار","ةلارةلار","ةلارةلار","ةلارة","لار"]
[5,"بلاءبى","ىةؤرىؤر","ىةؤلالة","لاؤةلارة","لارةلارة","لارةلارةلار","ةلارةلار","ةرلاة","لارةلارة","لارةلارة","لارةلارة","لارةلار","ةلارةلار","ةرلاةرلا","ةرلاةلار","ةلارةلار","ةرةلب","تبلت","فباتفيا","يبالات","لتلبت","لباتلؤب","تلؤتؤل","تلؤبتلؤب"]
[6,"لسلسل","لسلسلس","ييسبلسي","بشييبشثب","شبشب","بشبش","بشب","شبشبش"]

{"sheet":"print","index":1,"n_rows":33,"n_cols":15,"rows_kept":33,"cut":false,"hidden":false,"merged":[[2,0,2,1],[0,0,0,1],[1,0,1,1],[4,0,4,1]]}
["وزارة المواصلات"]
["مصلحة النقل البري "]
["استمارة بيانات للموظف"]
["رقم التسلسل للموظف",1]
[null,null,null,null,null,null,null,null,null,null,null,null,null,null,1]
["اسم الموظف رباعي",{"$f":"IF(ISERROR(MATCH($B$4,INDEX(بيانات1,0,1),0)),\"\",INDEX(بيانات1,MATCH($B$4,INDEX(بيانات1,0,1),0),2))","v":"سناء امين يس طلال"}]
["رقم المنظومة",{"$f":"IF(ISERROR(MATCH($B$4,INDEX(بيانات1,0,1),0)),\"\",INDEX(بيانات1,MATCH($B$4,INDEX(بيانات1,0,1),0),3))","v":"عقد موسمي"}]
["الرقم الوطني",{"$f":"IF(ISERROR(MATCH($B$4,INDEX(بيانات1,0,1),0)),\"\",INDEX(بيانات1,MATCH($B$4,INDEX(بيانات1,0,1),0),4))","v":6000}]
["رقم الملف الشخصي",{"$f":"IF(ISERROR(MATCH($B$4,INDEX(بيانات1,0,1),0)),\"\",INDEX(بيانات1,MATCH($B$4,INDEX(بيانات1,0,1),0),5))","v":"عامل"}]
["تاريخ الميلاد",{"$f":"IF(ISERROR(MATCH($B$4,INDEX(بيانات1,0,1),0)),\"\",INDEX(بيانات1,MATCH($B$4,INDEX(بيانات1,0,1),0),6))","v":"اعدادية"}]
["اسم الصرف",{"$f":"IF(ISERROR(MATCH($B$4,INDEX(بيانات1,0,1),0)),\"\",INDEX(بيانات1,MATCH($B$4,INDEX(بيانات1,0,1),0),7))","v":"اعزب"}]
["الفرع ",{"$f":"IF(ISERROR(MATCH($B$4,INDEX(بيانات1,0,1),0)),\"\",INDEX(بيانات1,MATCH($B$4,INDEX(بيانات1,0,1),0),8))","v":"بغداد"}]
["رقم الحساب",{"$f":"IF(ISERROR(MATCH($B$4,INDEX(بيانات1,0,1),0)),\"\",INDEX(بيانات1,MATCH($B$4,INDEX(بيانات1,0,1),0),9))","v":7729876}]
["المؤهل العلمي",{"$f":"IF(ISERROR(MATCH($B$4,INDEX(بيانات1,0,1),0)),\"\",INDEX(بيانات1,MATCH($B$4,INDEX(بيانات1,0,1),0),10))","v":800}]
["التخصص",{"$f":"IF(ISERROR(MATCH($B$4,INDEX(بيانات1,0,1),0)),\"\",INDEX(بيانات1,MATCH($B$4,INDEX(بيانات1,0,1),0),11))","v":150}]
["تاريخ الحصول عليه",{"$f":"IF(ISERROR(MATCH($B$4,INDEX(بيانات1,0,1),0)),\"\",INDEX(بيانات1,MATCH($B$4,INDEX(بيانات1,0,1),0),12))","v":1}]
["سنة التعيين",{"$f":"IF(ISERROR(MATCH($B$4,INDEX(بيانات1,0,1),0)),\"\",INDEX(بيانات1,MATCH($B$4,INDEX(بيانات1,0,1),0),13))","v":"نعم"}]
["الوظيفة في الملاك",{"$f":"IF(ISERROR(MATCH($B$4,INDEX(بيانات1,0,1),0)),\"\",INDEX(بيانات1,MATCH($B$4,INDEX(بيانات1,0,1),0),14))","v":27}]
["رقم الوظيفة في الملاك",{"$f":"IF(ISERROR(MATCH($B$4,INDEX(بيانات1,0,1),0)),\"\",INDEX(بيانات1,MATCH($B$4,INDEX(بيانات1,0,1),0),15))","v":"تعم"}]
["نوع التوظيف",{"$f":"IF(ISERROR(MATCH($B$4,INDEX(بيانات1,0,1),0)),\"\",INDEX(بيانات1,MATCH($B$4,INDEX(بيانات1,0,1),0),16))","v":"لمى"}]
["تاريخ المباشرة ",{"$f":"IF(ISERROR(MATCH($B$4,INDEX(بيانات1,0,1),0)),\"\",INDEX(بيانات1,MATCH($B$4,INDEX(بيانات1,0,1),0),17))","v":8}]
["الدرجة ",{"$f":"IF(ISERROR(MATCH($B$4,INDEX(بيانات1,0,1),0)),\"\",INDEX(بيانات1,MATCH($B$4,INDEX(بيانات1,0,1),0),18))","v":"ab"}]
["تاريخ الحصول عليه",{"$f":"IF(ISERROR(MATCH($B$4,INDEX(بيانات1,0,1),0)),\"\",INDEX(بيانات1,MATCH($B$4,INDEX(بيانات1,0,1),0),19))","v":"بابل"}]
["العلاوات ",{"$f":"IF(ISERROR(MATCH($B$4,INDEX(بيانات1,0,1),0)),\"\",INDEX(بيانات1,MATCH($B$4,INDEX(بيانات1,0,1),0),20))","v":"بصرة"}]
["شهر العلاوة",{"$f":"IF(ISERROR(MATCH($B$4,INDEX(بيانات1,0,1),0)),\"\",INDEX(بيانات1,MATCH($B$4,INDEX(بيانات1,0,1),0),21))","v":"أربيل"}]
["الادارة التي يتبعها الموظف",{"$f":"IF(ISERROR(MATCH($B$4,INDEX(بيانات1,0,1),0)),\"\",INDEX(بيانات1,MATCH($B$4,INDEX(بيانات1,0,1),0),22))","v":1954}]
["الوظيفة الحالية ",{"$f":"IF(ISERROR(MATCH($B$4,INDEX(بيانات1,0,1),0)),\"\",INDEX(بيانات1,MATCH($B$4,INDEX(بيانات1,0,1),0),23))","v":1957}]
["رصيد الاجازات",{"$f":"IF(ISERROR(MATCH($B$4,INDEX(بيانات1,0,1),0)),\"\",INDEX(بيانات1,MATCH($B$4,INDEX(بيانات1,0,1),0),24))","v":"الحمداني"}]
["رقم البطاقة الظمانية ",{"$f":"IF(ISERROR(MATCH($B$4,INDEX(بيانات1,0,1),0)),\"\",INDEX(بيانات1,MATCH($B$4,INDEX(بيانات1,0,1),0),25))","v":"مقاول"}]
["الملاحظات",{"$f":"IF(ISERROR(MATCH($B$4,INDEX(بيانات1,0,1),0)),\"\",INDEX(بيانات1,MATCH($B$4,INDEX(بيانات1,0,1),0),26))","v":"موظفة"}]
["  الاعداد ","  الاسم :............................"]
["  الاسم :...............................................","  رئيس وحدة شؤون الموظفين "]
["  التوقيع :.............................................","التوقيع :.................................."]